bitfinex/quotes_BTCUSD_20250331
["timestamp","ask_amount","ask_price","bid_price","bid_amount"]
[1743386647251,0.6068425,81980.0,81979.0,0.004]
[1743386648258,0.5564956,81980.0,81979.0,0.004]
[1743386648459,0.5564956,81980.0,81979.0,0.002]
[1743386648635,0.243997,81968.0,81967.0,0.0001683]
[1743386648836,0.012199,81969.0,81967.0,0.0001683]
[1743386648837,0.243991,81970.0,81967.0,0.0001683]
[1743386649039,0.25619,81970.0,81967.0,0.0001683]
[1743386649504,0.256196,81969.0,81967.0,0.0001683]
[1743386649676,0.012199,81968.0,81967.0,0.0001683]
[1743386649877,0.012199,81968.0,81967.0,0.0041683]
[1743386650421,0.012199,81968.0,81967.0,0.0001683]
[1743386650703,0.3902756,81968.0,81967.0,0.0001683]
[1743386650924,0.3902756,81968.0,81967.0,0.0031683]
[1743386651062,0.3902756,81968.0,81967.0,0.0001683]
[1743386651634,0.312199,81968.0,81967.0,0.0061683]
[1743386652306,0.312199,81968.0,81967.0,0.0031683]
[1743386652469,0.312199,81968.0,81967.0,0.0001683]
[1743386652671,0.312199,81968.0,81967.0,0.0031683]
[1743386653189,0.312199,81968.0,81967.0,0.0061683]
[1743386653511,0.4202756,81968.0,81967.0,0.0061683]
[1743386653709,0.256196,81969.0,81967.0,0.0061683]
[1743386654009,0.012199,81968.0,81967.0,0.0061683]
[1743386654711,0.012199,81968.0,81967.0,0.0001683]
[1743386655288,0.013199,81968.0,81967.0,0.0001683]
[1743386655468,0.02315797,81968.0,81967.0,0.0001683]
[1743386655873,0.02515797,81968.0,81967.0,0.0001683]
[1743386659802,0.12167623,81968.0,81967.0,0.0001683]
[1743386660002,0.02515797,81968.0,81967.0,0.0001683]
[1743386662241,0.05942014,81968.0,81967.0,0.0001683]
[1743386662898,0.35942014,81968.0,81967.0,0.0001683]
[1743386663181,0.256196,81969.0,81967.0,0.0001683]
[1743386663386,0.012199,81968.0,81967.0,0.0001683]
[1743386664168,0.02120027,81968.0,81967.0,0.0001683]
[1743386665099,0.32120027,81968.0,81967.0,0.0001683]
[1743386665333,0.41731912,81968.0,81967.0,3e-07]
[1743386666152,0.32120027,81968.0,81967.0,3e-07]
[1743386666333,0.32420027,81968.0,81967.0,3e-07]
[1743386666646,0.36073432,81968.0,81967.0,3e-07]
[1743386666945,0.36107092,81968.0,81967.0,3e-07]
[1743386667297,0.556225,81959.0,81958.0,0.0003368]
[1743386668060,0.59275905,81959.0,81958.0,0.0003368]
[1743386668821,0.33753405,81959.0,81958.0,0.0003368]
[1743386669024,0.03753405,81959.0,81958.0,0.0003368]
[1743386669231,0.29375905,81959.0,81958.0,0.0003368]
[1743386670494,0.38750696,81959.0,81958.0,0.0003368]
[1743386671007,0.29375905,81959.0,81958.0,0.0003368]
[1743386672362,0.07126947,81959.0,81958.0,0.0003368]
[1743386673151,0.07126947,81959.0,81958.0,0.0488368]
[1743386673927,0.3,81960.0,81958.0,0.0488368]
[1743386674547,0.256209,81964.0,81958.0,0.0488368]
[1743386674747,0.256215,81963.0,81959.0,0.03936096]
[1743386674948,0.012201,81960.0,81959.0,0.03936096]
[1743386675123,0.012201,81960.0,81958.0,0.0528368]
[1743386675994,0.02283645,81962.0,81958.0,0.0650378]
[1743386676112,0.02283645,81959.0,81958.0,0.0528368]
[1743386676320,0.02283645,81959.0,81958.0,0.0488368]
[1743386676722,0.02283645,81959.0,81958.0,0.0498368]
[1743386677078,0.02283645,81959.0,81958.0,0.11392226]
[1743386677276,0.02283645,81959.0,81958.0,0.11592226]
[1743386677477,0.03426099,81959.0,81958.0,0.11592226]
[1743386678465,0.03426099,81959.0,81958.0,0.0508368]
[1743386679215,0.03426099,81959.0,81958.0,0.0528368]
[1743386679806,0.03459779,81959.0,81958.0,0.0528368]
[1743386680592,0.03459779,81959.0,81958.0,0.0650378]
[1743386680977,0.03459779,81959.0,81958.0,0.1423378]
[1743386681241,0.03459779,81959.0,81958.0,0.23469656]
[1743386683029,0.03459779,81959.0,81958.0,0.2896178]
[1743386683754,0.03459779,81959.0,81958.0,0.1423378]
[1743386688020,0.03459779,81959.0,81958.0,0.14477785]
[1743386688153,0.03459779,81959.0,81958.0,0.14477752]
[1743386688357,0.03459779,81959.0,81958.0,0.15687865]
[1743386688557,0.03459779,81959.0,81958.0,0.28747208]
[1743386688967,0.03459779,81959.0,81958.0,0.40575691]
[1743386689175,0.03459779,81959.0,81958.0,0.26641949]
[1743386689374,0.02317325,81959.0,81958.0,0.1403378]
[1743386689637,0.02317325,81959.0,81958.0,0.2885778]
[1743386689852,0.0003368,81959.0,81958.0,0.2855778]
[1743386690070,0.0013368,81959.0,81958.0,0.2885778]
[1743386690222,0.0013368,81959.0,81958.0,0.2945778]
[1743386691353,0.0013368,81959.0,81958.0,0.41486263]
[1743386692159,0.01275663,81959.0,81958.0,0.40266163]
[1743386692364,0.01275663,81959.0,81958.0,0.41486263]
[1743386693163,0.01175663,81959.0,81958.0,0.41186263]
[1743386693373,0.01175663,81959.0,81958.0,0.40586263]
[1743386693620,0.01275663,81959.0,81958.0,0.41086263]
[1743386693822,0.01275663,81959.0,81958.0,0.41586263]
[1743386695403,0.3,81972.0,81963.0,0.244011]
[1743386695603,0.012199,81970.0,81963.0,0.30952153]
[1743386695829,0.3,81972.0,81967.0,0.244]
[1743386695981,0.00915383,81991.0,81978.0,0.243967]
[1743386696186,0.00915383,81991.0,81978.0,0.0498]
[1743386696187,0.012197,81981.0,81978.0,0.0498]
[1743386696690,0.256158,81981.0,81978.0,0.0498]
[1743386697307,0.24397,81978.0,81971.0,0.331484]
[1743386697511,0.012197,81981.0,81971.0,0.331484]
[1743386697512,0.012197,81981.0,81972.0,0.256181]
[1743386697708,0.256145,81985.0,81974.0,0.012198]
[1743386698041,0.01950162,81981.0,81976.0,0.243973]
[1743386698664,0.3,81982.0,81978.0,0.243967]
[1743386698900,0.01958785,81987.0,81979.0,0.012198]
[1743386699140,0.3,81990.0,81979.0,0.04433513]
[1743386699329,0.243916,81996.0,81979.0,0.04433513]
[1743386699552,0.012196,81989.0,81979.0,0.04433513]
[1743386699994,0.3,81989.0,81979.0,0.04433513]
[1743386701041,0.01929155,81987.0,81979.0,0.04433513]
[1743386701260,0.01929155,81987.0,81979.0,0.012198]
[1743386702022,0.03148855,81987.0,81979.0,0.012198]
[1743386702422,0.01929155,81987.0,81979.0,0.012198]
[1743386702618,0.01929155,81987.0,81979.0,0.013198]
[1743386703344,0.03148855,81987.0,81979.0,0.013198]
[1743386703866,0.03148855,81987.0,81979.0,0.014198]
[1743386704074,0.01929155,81987.0,81979.0,0.014198]
[1743386704494,0.0125346,81980.0,81979.0,0.002]
[1743386706844,0.0003366,81980.0,81979.0,0.002]
[1743386707167,0.0125346,81980.0,81979.0,0.002]
[1743386707984,0.0003366,81980.0,81979.0,0.002]
[1743386708208,0.0003366,81980.0,81979.0,0.1238542]
[1743386709706,0.0003366,81980.0,81979.0,0.1116562]
[1743386710459,0.0003366,81980.0,81979.0,0.3678182]
[1743386713921,0.0003366,81980.0,81979.0,0.4165182]
[1743386714670,0.0003366,81980.0,81979.0,0.98110303]
[1743386714671,6e-07,81980.0,81979.0,0.98110303]
[1743386714984,6e-07,81980.0,81979.0,1.27564388]
[1743386715627,6e-07,81980.0,81979.0,1.27464388]
[1743386715829,6e-07,81980.0,81979.0,0.96964388]
[1743386716031,6e-07,81980.0,81979.0,0.8348182]
[1743386716187,6e-07,81980.0,81979.0,0.9821382]
[1743386716389,6e-07,81980.0,81979.0,0.99567905]
[1743386716710,6e-07,81980.0,81979.0,1.00167905]
[1743386717238,6e-07,81980.0,81979.0,1.00067905]
[1743386717762,6e-07,81980.0,81979.0,1.63443905]
[1743386717875,6e-07,81980.0,81979.0,1.6198982]
[1743386718082,6e-07,81980.0,81979.0,1.591642]
[1743386718281,6e-07,81980.0,81979.0,1.586642]
[1743386718750,6e-07,81980.0,81979.0,1.591642]
[1743386719372,0.0010006,81980.0,81979.0,1.596442]
[1743386719569,0.0010006,81980.0,81979.0,1.71672683]
[1743386721741,0.0010006,81980.0,81979.0,1.596442]
[1743386722956,0.0010006,81980.0,81979.0,1.449322]
[1743386723314,0.0010006,81980.0,81979.0,1.367922]
[1743386723693,0.0010006,81980.0,81979.0,1.319222]
[1743386724137,0.03081747,81980.0,81979.0,1.06306]
[1743386724363,0.06633862,81980.0,81979.0,0.01]
[1743386724985,0.03081747,81980.0,81979.0,0.01]
[1743386725439,0.012198,81974.0,81973.0,0.0001683]
[1743386725639,0.256177,81974.0,81973.0,0.0001683]
[1743386727235,0.556177,81974.0,81973.0,0.0001683]
[1743386727998,0.556177,81974.0,81973.0,0.0031683]
[1743386728406,0.02981747,81980.0,81973.0,0.0031683]
[1743386728556,0.256171,81976.0,81973.0,0.0001683]
[1743386728757,0.256177,81974.0,81973.0,0.0011683]
[1743386728961,0.256177,81974.0,81973.0,0.0051683]
[1743386729361,0.72142182,81974.0,81973.0,3e-07]
[1743386729597,0.256225,81959.0,81958.0,0.00047791]
[1743386729796,0.556225,81959.0,81958.0,0.00047791]
[1743386731224,0.557225,81959.0,81958.0,0.00047791]
[1743386732616,0.558225,81959.0,81958.0,0.00047791]
[1743386733415,0.67683403,81959.0,81958.0,0.00047791]
[1743386733624,0.67683403,81959.0,81958.0,9.1e-07]
[1743386734022,0.67683403,81959.0,81956.0,7.1e-07]
[1743386734023,0.012201,81957.0,81956.0,7.1e-07]
[1743386736848,0.012201,81957.0,81952.0,0.0473]
[1743386736849,0.256244,81953.0,81952.0,0.04634664]
[1743386737968,0.256244,81953.0,81952.0,0.04834664]
[1743386738283,0.256244,81953.0,81952.0,0.04634664]
[1743386738730,0.00910718,81959.0,81955.0,0.256232]
[1743386738925,6.905e-05,81959.0,81958.0,0.012201]
[1743386739156,6.905e-05,81959.0,81958.0,0.01464084]
[1743386739360,6.905e-05,81959.0,81958.0,0.012201]
[1743386739534,0.012201,81958.0,81956.0,0.0812]
[1743386739772,0.256231,81957.0,81956.0,0.0812]
[1743386739971,0.256231,81957.0,81955.0,0.14716]
[1743386739972,0.012201,81956.0,81955.0,0.14716]
[1743386740876,0.012201,81956.0,81952.0,0.04651494]
[1743386741011,0.012202,81953.0,81952.0,0.04651494]
[1743386741415,0.256244,81953.0,81952.0,0.04651494]
[1743386742054,0.012201,81960.0,81954.0,0.012201]
[1743386742236,0.244027,81958.0,81954.0,0.012201]
[1743386742617,0.256234,81957.0,81952.0,0.04851494]
[1743386742819,0.012201,81956.0,81952.0,0.04851494]
[1743386743561,6.905e-05,81959.0,81954.0,0.256237]
[1743386743788,6.905e-05,81959.0,81958.0,0.092601]
[1743386745047,6.905e-05,81959.0,81958.0,0.0804]
[1743386746133,0.25629405,81959.0,81958.0,0.0804]
[1743386747031,0.25629405,81959.0,81958.0,0.0814]
[1743386747236,0.25629405,81959.0,81958.0,0.001]
[1743386750449,0.012201,81959.0,81958.0,0.001]
[1743386751862,0.256225,81959.0,81958.0,0.001]
[1743386752291,0.2565616,81959.0,81958.0,0.001]
[1743386754413,0.5565616,81959.0,81958.0,0.001]
[1743386754829,0.56579431,81959.0,81958.0,0.001]
[1743386760759,0.58491135,81959.0,81958.0,0.001]
[1743386761814,0.31945364,81959.0,81958.0,0.001]
[1743386761984,0.01945364,81959.0,81958.0,0.13252378]
[1743386762188,0.27567864,81959.0,81958.0,0.0809]
[1743386762604,0.27567864,81959.0,81958.0,0.001]
[1743386763036,0.28483246,81959.0,81958.0,0.001]
[1743386763241,0.36433246,81959.0,81958.0,0.001]
[1743386763449,0.556231,81957.0,81956.0,3e-07]
[1743386763726,0.556244,81953.0,81952.0,0.0001286]
[1743386764072,0.59149519,81953.0,81952.0,0.0001286]
[1743386764304,0.312202,81952.0,81951.0,6e-07]
[1743386764500,0.55886822,81952.0,81951.0,6e-07]
[1743386764674,0.608662,81952.0,81951.0,6e-07]
[1743386765209,0.57340907,81952.0,81951.0,6e-07]
[1743386765416,0.60864446,81952.0,81951.0,6e-07]
[1743386765781,0.61064446,81952.0,81951.0,6e-07]
[1743386766830,0.443302,81952.0,81951.0,6e-07]
[1743386767028,0.095702,81952.0,81951.0,6e-07]
[1743386767240,0.242862,81952.0,81951.0,6e-07]
[1743386767638,0.163362,81952.0,81951.0,6e-07]
[1743386770111,0.18248437,81952.0,81951.0,6e-07]
[1743386770270,0.3027692,81952.0,81951.0,6e-07]
[1743386772090,0.39681005,81952.0,81951.0,6e-07]
[1743386772845,0.25720519,81952.0,81951.0,6e-07]
[1743386773048,0.27632859,81952.0,81951.0,6e-07]
[1743386773292,0.33833059,81952.0,81951.0,6e-07]
[1743386773467,0.34333059,81952.0,81951.0,6e-07]
[1743386773769,0.34833059,81952.0,81951.0,0.0010006]
[1743386773965,0.64833059,81952.0,81951.0,0.0010006]
[1743386774188,0.64333059,81952.0,81951.0,0.0010006]
[1743386774406,0.4656254,81952.0,81951.0,0.0010006]
[1743386774625,0.6178254,81952.0,81951.0,0.0010006]
[1743386776616,0.6178254,81952.0,81951.0,0.0011689]
[1743386777430,0.548902,81952.0,81951.0,0.0011689]
[1743386778211,0.548902,81952.0,81951.0,9e-07]
[1743386778212,0.56344285,81952.0,81951.0,9e-07]
[1743386778396,0.68372768,81952.0,81951.0,9e-07]
[1743386779400,0.556296,81936.0,81935.0,0.0003368]
[1743386779722,0.684296,81936.0,81935.0,8e-07]
[1743386779881,0.684296,81936.0,81921.0,0.004]
[1743386779882,0.55634,81922.0,81921.0,6e-07]
[1743386780091,0.256322,81928.0,81891.0,0.0041683]
[1743386780092,0.556391,81906.0,81891.0,0.0041683]
[1743386781354,0.57439217,81906.0,81905.0,0.00055196]
[1743386781558,0.57439217,81906.0,81905.0,0.00155196]
[1743386781737,0.59352293,81906.0,81905.0,0.00155196]
[1743386782820,0.60258461,81906.0,81905.0,0.00155196]
[1743386783217,0.66141449,81906.0,81905.0,0.00155196]
[1743386783631,0.33035784,81906.0,81905.0,0.00155196]
[1743386783833,0.57453984,81906.0,81905.0,0.00155196]
[1743386786755,0.57453984,81906.0,81905.0,9.6e-07]
[1743386787176,0.55540908,81906.0,81905.0,9.6e-07]
[1743386787380,0.256416,81898.0,81891.0,0.0041683]
[1743386789947,0.257416,81898.0,81891.0,0.0041683]
[1743386790150,0.27554795,81898.0,81891.0,0.0041683]
[1743386792030,0.27554795,81898.0,81897.0,0.0795683]
[1743386792031,0.03134195,81898.0,81897.0,0.0795683]
[1743386796767,0.01913195,81898.0,81897.0,0.1248683]
[1743386797094,0.012209,81901.0,81897.0,0.1248683]
[1743386797984,0.244194,81902.0,81897.0,0.1248683]
[1743386798130,0.256403,81902.0,81897.0,0.1248683]
[1743386798956,0.01221,81898.0,81897.0,0.1248683]
[1743386799168,0.256416,81898.0,81897.0,0.1248683]
[1743386799364,0.256416,81898.0,81897.0,0.0001683]
[1743386799588,0.556416,81898.0,81897.0,0.0001683]
[1743386799992,0.57554746,81898.0,81897.0,0.0001683]
[1743386805859,0.256519,81865.0,81861.0,0.004]
[1743386806100,0.256528,81862.0,81861.0,0.004]
[1743386806713,0.01913705,81862.0,81861.0,0.004]
[1743386807201,0.00047109,81862.0,81861.0,0.004]
[1743386807683,0.01268609,81862.0,81861.0,0.004]
[1743386809510,0.31268609,81862.0,81861.0,0.004]
[1743386810018,0.33182417,81862.0,81861.0,0.004]
[1743386810218,0.34322813,81862.0,81861.0,0.004]
[1743386811831,0.33182417,81862.0,81861.0,0.004]
[1743386812361,0.33182417,81862.0,81826.0,0.025]
[1743386812362,0.256623,81832.0,81831.0,0.15168]
[1743386812563,0.256623,81832.0,81831.0,0.004]
[1743386812564,0.556623,81832.0,81831.0,0.004]
[1743386813136,0.5871419,81832.0,81831.0,0.004]
[1743386813763,0.5876127,81832.0,81831.0,0.004]
[1743386813937,0.5896127,81832.0,81831.0,0.004]
[1743386814274,0.59883786,81832.0,81831.0,0.004]
[1743386814663,0.62152842,81832.0,81831.0,0.004]
[1743386815232,0.31230326,81832.0,81831.0,0.004]
[1743386815437,0.31030326,81832.0,81831.0,0.004]
[1743386817213,0.29115859,81832.0,81831.0,0.004]
[1743386819293,0.26846803,81832.0,81831.0,0.004]
[1743386819520,0.01184503,81832.0,81831.0,0.004]
[1743386819968,0.02406503,81832.0,81831.0,0.004]
[1743386820194,0.04320813,81832.0,81831.0,0.004]
[1743386820410,0.0318339,81832.0,81831.0,0.004]
[1743386820607,0.0196139,81832.0,81831.0,0.004]
[1743386820834,0.0196139,81832.0,81831.0,0.09352]
[1743386820949,0.0196139,81832.0,81831.0,0.0813]
[1743386821766,0.0196139,81832.0,81831.0,0.09352]
[1743386821979,0.0216139,81832.0,81831.0,0.09352]
[1743386822169,0.0206139,81832.0,81831.0,0.09352]
[1743386822526,0.0196139,81832.0,81831.0,0.09352]
[1743386822920,0.0196139,81832.0,81831.0,0.224641]
[1743386823120,0.0196139,81832.0,81831.0,0.13952]
[1743386823358,0.0196139,81832.0,81831.0,0.1273]
[1743386823557,8.0196139,81832.0,81831.0,0.1273]
[1743386823762,8.0196139,81832.0,81831.0,0.13952]
[1743386823964,8.0196139,81832.0,81831.0,0.29044]
[1743386824280,8.0196139,81832.0,81831.0,0.42526568]
[1743386824825,8.0196139,81832.0,81831.0,0.42543418]
[1743386825026,8.0196139,81832.0,81831.0,0.43343418]
[1743386825451,8.0196139,81832.0,81831.0,0.42543418]
[1743386825661,8.0206139,81832.0,81831.0,0.42943418]
[1743386825860,8.0216139,81832.0,81831.0,0.67784018]
[1743386826059,8.0216139,81832.0,81831.0,1.12812501]
[1743386826712,8.0216139,81832.0,81831.0,1.15219896]
[1743386827045,8.0216139,81832.0,81831.0,0.87599413]
[1743386827046,8.0024708,81832.0,81831.0,0.87599413]
[1743386827251,8.0024708,81832.0,81831.0,1.02683413]
[1743386827458,8.0014708,81832.0,81831.0,1.02283413]
[1743386827660,8.0004708,81832.0,81831.0,1.01883413]
[1743386827863,8.0004708,81832.0,81831.0,1.02483413]
[1743386828079,8.0004708,81832.0,81831.0,1.03083413]
[1743386830113,8.01961202,81832.0,81831.0,1.03083413]
[1743386831162,8.01961202,81832.0,81831.0,1.15611896]
[1743386831336,8.01961202,81832.0,81831.0,1.56941896]
[1743386831522,8.01961202,81832.0,81831.0,1.56341896]
[1743386831722,8.01961202,81832.0,81831.0,1.56985896]
[1743386832190,7.00300114,81832.0,81831.0,1.44957413]
[1743386832628,7.00300114,81832.0,81831.0,1.44357413]
[1743386832762,5.00795795,81832.0,81831.0,1.44957413]
[1743386832960,3.80810504,81832.0,81831.0,1.44957413]
[1743386833165,3.73000504,81832.0,81831.0,1.45557413]
[1743386834112,3.73000504,81832.0,81831.0,1.44957413]
[1743386834540,3.73000504,81832.0,81831.0,1.44357413]
[1743386834690,3.73000504,81832.0,81831.0,1.44957413]
[1743386834897,3.67475143,81832.0,81831.0,1.45557413]
[1743386835093,3.67475143,81832.0,81831.0,1.44957413]
[1743386835295,3.67475143,81832.0,81831.0,1.44357413]
[1743386835504,3.67475143,81832.0,81831.0,1.45525413]
[1743386838106,3.67475143,81832.0,81831.0,2.09001413]
[1743386842278,3.67475143,81832.0,81831.0,1.93905413]
[1743386842480,3.67475143,81832.0,81831.0,1.94958845]
[1743386842686,3.67475143,81832.0,81831.0,2.07487328]
[1743386842853,3.67475143,81832.0,81831.0,2.08941413]
[1743386843667,3.67475143,81832.0,81831.0,2.21811413]
[1743386844118,3.67475143,81832.0,81831.0,2.20611413]
[1743386844537,3.67475143,81832.0,81831.0,2.21811413]
[1743386844735,3.67475143,81832.0,81831.0,2.21211413]
[1743386845056,3.67475143,81832.0,81831.0,2.20611413]
[1743386845258,3.67475143,81832.0,81831.0,2.21211413]
[1743386845466,3.67475143,81832.0,81831.0,2.24884913]
[1743386845657,3.67475143,81832.0,81831.0,2.25484913]
[1743386846064,3.40201556,81832.0,81831.0,2.25484913]
[1743386847291,3.40201556,81832.0,81831.0,2.24884913]
[1743386847843,3.40201556,81832.0,81831.0,2.25484913]
[1743386848615,3.40235256,81832.0,81831.0,2.25484913]
[1743386848966,3.40235256,81832.0,81831.0,2.93914913]
[1743386853212,3.40235256,81832.0,81831.0,2.78878913]
[1743386853416,3.40235256,81832.0,81831.0,2.93798913]
[1743386854239,2.58575122,81832.0,81831.0,2.93788913]
[1743386854568,2.52403042,81832.0,81831.0,2.93788913]
[1743386854712,2.10473042,81832.0,81831.0,2.51858913]
[1743386855120,2.10473042,81832.0,81831.0,2.50658913]
[1743386855521,2.10473042,81832.0,81831.0,2.51258913]
[1743386856406,2.10473042,81832.0,81831.0,2.36938913]
[1743386856608,2.10473042,81832.0,81831.0,2.51818913]
[1743386858844,0.000337,81832.0,81831.0,2.36938913]
[1743386859085,0.000337,81832.0,81831.0,2.51786913]
[1743386860533,0.000337,81832.0,81831.0,2.93716913]
[1743386861908,0.000337,81861.0,81860.0,0.256534]
[1743386862036,0.000337,81861.0,81860.0,1.05379485]
[1743386862451,0.01947252,81861.0,81860.0,1.05379485]
[1743386862649,0.01947252,81861.0,81860.0,1.35379485]
[1743386862855,0.01947252,81861.0,81860.0,1.49907968]
[1743386863255,0.01947252,81861.0,81860.0,1.52095669]
[1743386863666,0.01947252,81861.0,81860.0,1.52695669]
[1743386865168,0.01947252,81861.0,81860.0,1.52095669]
[1743386865378,0.01947252,81861.0,81860.0,1.52695669]
[1743386865584,0.01947252,81861.0,81860.0,1.54575406]
[1743386865910,0.01947252,81861.0,81860.0,1.55175406]
[1743386866105,0.01947252,81861.0,81860.0,1.52675406]
[1743386866327,0.01947252,81861.0,81860.0,1.55175406]
[1743386866571,0.01947252,81861.0,81860.0,1.54575406]
[1743386866776,0.01947252,81861.0,81860.0,1.55175406]
[1743386867245,0.000337,81861.0,81860.0,1.55175406]
[1743386871530,0.000337,81861.0,81860.0,1.15860727]
[1743386871738,0.244253,81882.0,81861.0,0.32675585]
[1743386871888,0.012212,81881.0,81863.0,0.01454085]
[1743386872092,0.01913435,81874.0,81863.0,0.01454085]
[1743386873016,0.01913435,81874.0,81862.0,0.01454085]
[1743386873424,0.01913435,81874.0,81862.0,0.27106785]
[1743386873587,0.01913435,81874.0,81863.0,0.004]
[1743386874441,0.01913435,81874.0,81864.0,0.01454085]
[1743386874957,0.079,81873.0,81865.0,0.14732]
[1743386875784,0.079,81873.0,81864.0,0.01854085]
[1743386875981,0.079,81873.0,81866.0,0.14732]
[1743386876325,0.079,81873.0,81865.0,0.004]
[1743386876625,0.012214,81872.0,81866.0,0.14732]
[1743386876823,0.091214,81873.0,81866.0,0.14732]
[1743386876824,0.079,81873.0,81866.0,0.14732]
[1743386878016,0.079,81873.0,81866.0,0.15132]
[1743386878789,0.079,81873.0,81866.0,0.15532]
[1743386879242,0.079,81873.0,81866.0,0.15132]
[1743386879451,0.079,81873.0,81866.0,0.15532]
[1743386880139,0.01913508,81872.0,81866.0,0.15532]
[1743386880766,0.01913508,81872.0,81867.0,0.01454085]
[1743386882348,0.01913508,81872.0,81867.0,0.01854085]
[1743386882684,0.01913508,81872.0,81867.0,0.02254085]
[1743386884112,0.01913508,81872.0,81867.0,0.008]
[1743386884517,0.0828,81871.0,81868.0,0.14732]
[1743386885905,0.0828,81871.0,81868.0,0.15632]
[1743386886259,0.01913508,81872.0,81868.0,0.15632]
[1743386887002,0.327072,81876.0,81868.0,0.15632]
[1743386887220,0.0828,81876.0,81868.0,0.15632]
[1743386887794,0.0828,81876.0,81868.0,0.14732]
[1743386888184,0.0828,81876.0,81868.0,0.15532]
[1743386888549,0.0828,81876.0,81868.0,0.14732]
[1743386888808,0.0828,81876.0,81868.0,0.15332]
[1743386890402,0.0191347,81875.0,81868.0,0.15332]
[1743386891318,0.0191347,81875.0,81868.0,0.15032]
[1743386891512,0.0191347,81875.0,81868.0,0.15432]
[1743386891696,0.0191347,81875.0,81868.0,0.15132]
[1743386892059,0.0191347,81875.0,81868.0,0.007]
[1743386892280,0.0191347,81875.0,81869.0,0.14732]
[1743386892675,0.25649,81874.0,81869.0,0.14732]
[1743386892831,0.0191347,81875.0,81869.0,0.14732]
[1743386894265,0.0191347,81875.0,81869.0,0.15132]
[1743386895237,0.0191347,81875.0,81869.0,0.15432]
[1743386895633,0.0191347,81875.0,81872.0,0.01454085]
[1743386895783,0.0191347,81875.0,81871.0,0.01454085]
[1743386896826,0.0191347,81875.0,81872.0,0.003]
[1743386897224,0.0191347,81875.0,81872.0,0.008]
[1743386897989,0.0191347,81875.0,81872.0,0.005]
[1743386898522,0.0191347,81875.0,81874.0,0.0250324]
[1743386898920,0.256468,81882.0,81874.0,0.0250324]
[1743386899236,0.256468,81882.0,81875.0,0.14732]
[1743386899639,0.012212,81881.0,81875.0,0.14732]
[1743386900441,0.256471,81881.0,81875.0,0.14732]
[1743386900875,0.012212,81881.0,81874.0,0.0290324]
[1743386901036,0.012212,81881.0,81875.0,0.15032]
[1743386901830,0.26339386,81880.0,81875.0,0.14732]
[1743386902085,0.27560586,81880.0,81875.0,0.14732]
[1743386902405,0.27560586,81880.0,81875.0,0.15032]
[1743386902911,0.27560586,81880.0,81876.0,0.14732]
[1743386903783,0.03134586,81880.0,81876.0,0.14732]
[1743386904595,0.27560786,81880.0,81876.0,0.14732]
[1743386904795,0.27560786,81880.0,81876.0,0.15032]
[1743386905036,0.256481,81877.0,81876.0,0.006]
[1743386905265,0.332681,81877.0,81876.0,0.006]
[1743386905470,0.381081,81877.0,81876.0,0.006]
[1743386906008,0.681081,81877.0,81876.0,0.006]
[1743386906252,0.681081,81877.0,81860.0,0.63470905]
[1743386906253,0.556509,81868.0,81860.0,6.905e-05]
[1743386906497,0.71194789,81868.0,81867.0,2e-07]
[1743386906721,0.71194789,81868.0,81860.0,6.905e-05]
[1743386906722,0.681131,81861.0,81860.0,5e-08]
[1743386908892,0.69026734,81861.0,81860.0,0.00016825]
[1743386909633,0.71427836,81861.0,81860.0,0.00016825]
[1743386910106,0.73341897,81861.0,81860.0,0.00016825]
[1743386910351,0.70940795,81861.0,81860.0,0.00016825]
[1743386910582,0.46509195,81861.0,81860.0,0.00016825]
[1743386910824,0.01914061,81861.0,81860.0,0.00016825]
[1743386912001,0.01914061,81861.0,81860.0,0.00116825]
[1743386912246,0.01914061,81861.0,81860.0,0.00016825]
[1743386912472,0.01914061,81861.0,81860.0,0.00316825]
[1743386913436,0.01914061,81861.0,81860.0,0.2742431]
[1743386913662,0.01914061,81861.0,81860.0,0.0207091]
[1743386913920,0.01914061,81861.0,81860.0,0.0477877]
[1743386914221,0.01914061,81861.0,81860.0,0.0207091]
[1743386914510,0.01914061,81861.0,81860.0,0.04276024]
[1743386914648,0.01914061,81861.0,81860.0,0.10216024]
[1743386915116,0.01914061,81861.0,81860.0,0.22244507]
[1743386917011,0.244253,81882.0,81866.0,0.01454085]
[1743386917274,0.256465,81882.0,81866.0,0.01454085]
[1743386917391,0.256474,81880.0,81863.0,0.01454085]
[1743386917594,0.012213,81877.0,81863.0,0.01454085]
[1743386917791,0.012212,81882.0,81866.0,0.01454085]
[1743386917997,0.0003364,81883.0,81869.0,0.012214]
[1743386918199,0.0003364,81883.0,81870.0,0.16186085]
[1743386918623,0.0003364,81883.0,81880.0,0.01454085]
[1743386918824,0.0003364,81883.0,81880.0,0.02675285]
[1743386919032,0.0003364,81883.0,81876.0,0.01454085]
[1743386919467,0.012211,81893.0,81876.0,0.01454085]
[1743386919645,0.01221,81894.0,81878.0,0.01454085]
[1743386919802,0.244203,81899.0,81881.0,0.012212]
[1743386920000,0.244203,81899.0,81881.0,0.256468]
[1743386920001,0.02870759,81898.0,81881.0,0.256468]
[1743386920223,0.01913252,81891.0,81881.0,0.012212]
[1743386920425,0.01913252,81891.0,81880.0,0.002]
[1743386920626,0.01913252,81891.0,81880.0,0.01454085]
[1743386921199,0.01913252,81891.0,81879.0,0.244262]
[1743386921200,0.01913252,81891.0,81879.0,0.01454085]
[1743386921395,0.27557152,81891.0,81875.0,0.01454085]
[1743386921606,0.27557152,81891.0,81880.0,0.002]
[1743386921782,0.0003364,81883.0,81880.0,0.002]
[1743386922631,0.0003364,81883.0,81880.0,0.004]
[1743386923121,0.0003364,81883.0,81880.0,0.002]
[1743386923315,0.0003364,81883.0,81879.0,0.02675385]
[1743386923447,0.0003364,81883.0,81880.0,0.004]
[1743386923662,0.0003364,81883.0,81881.0,0.30659585]
[1743386924113,0.30772527,81901.0,81881.0,0.30659585]
[1743386924320,0.01221,81897.0,81881.0,0.06234085]
[1743386924521,0.01913235,81883.0,81881.0,0.06234085]
[1743386925030,0.01913263,81883.0,81881.0,0.06634085]
[1743386925263,0.01913263,81883.0,81881.0,0.06234085]
[1743386925795,0.01913263,81883.0,81880.0,0.004]
[1743386926003,0.01913263,81883.0,81881.0,0.14728]
[1743386926404,0.01913263,81883.0,81882.0,0.25879385]
[1743386926593,0.01913263,81883.0,81882.0,0.39129068]
[1743386926795,0.02797758,81905.0,81889.0,0.01454085]
[1743386927359,0.244188,81904.0,81889.0,0.01454085]